bitfinex/quotes_BTCUSD_20240719
["timestamp","ask_amount","ask_price","bid_price","bid_amount"]
[1721351993495,1.71180832,63415.0,63414.0,0.0001]
[1721351993658,1.72580832,63415.0,63414.0,0.0001]
[1721351993857,1.73980832,63415.0,63414.0,0.0001]
[1721351994359,1.75380832,63415.0,63414.0,0.0001]
[1721351996156,1.93842632,63415.0,63414.0,0.0001]
[1721351996311,1.27222632,63415.0,63414.0,0.0001]
[1721351996510,1.74922632,63415.0,63414.0,0.0001]
[1721351996987,1.24922632,63415.0,63414.0,0.0001]
[1721351997202,1.24823701,63415.0,63414.0,0.0001]
[1721351997858,1.74823701,63415.0,63414.0,0.0001]
[1721351997867,2.44281901,63415.0,63414.0,0.0001]
[1721351998130,2.54763744,63415.0,63414.0,0.0001]
[1721351998368,2.52740623,63415.0,63414.0,0.0001]
[1721351998651,2.54757537,63415.0,63414.0,0.0001]
[1721351998897,1.320089,63412.0,63393.0,0.157745]
[1721351999148,1.75182031,63412.0,63393.0,0.157745]
[1721351999411,1.75182031,63412.0,63395.0,0.315481]
[1721351999412,2.25569308,63412.0,63395.0,0.315481]
[1721351999702,1.94029608,63412.0,63392.0,0.381992]
[1721351999955,1.94029608,63412.0,63405.0,0.0665]
[1721351999956,0.25438174,63412.0,63405.0,0.0665]
[1721352000201,0.42607974,63412.0,63406.0,0.157713]
[1721352000457,0.16838174,63412.0,63411.0,0.873605]
[1721352000712,0.014,63412.0,63411.0,0.558203]
[1721352000958,0.00934616,63418.0,63415.0,0.15769]
[1721352001197,0.65438174,63417.0,63415.0,0.15769]
[1721352001440,0.157694,63414.0,63411.0,0.002]
[1721352001688,0.65438174,63417.0,63411.0,0.002913]
[1721352001689,1.22187374,63412.0,63411.0,0.002913]
[1721352001922,1.17187374,63412.0,63411.0,0.002913]
[1721352002169,1.13367374,63412.0,63411.0,0.002913]
[1721352002513,1.28802331,63412.0,63411.0,0.002913]
[1721352002700,0.26838174,63412.0,63411.0,0.002913]
[1721352002944,0.26838174,63412.0,63411.0,0.160614]
[1721352002945,0.18238174,63412.0,63411.0,0.160614]
[1721352003188,0.18238174,63412.0,63411.0,0.476016]
[1721352003432,0.18238174,63412.0,63411.0,0.002913]
[1721352003433,0.17261991,63412.0,63411.0,0.002913]
[1721352003911,0.16838174,63412.0,63411.0,0.002913]
[1721352004411,0.26838174,63412.0,63411.0,0.002913]
[1721352004617,0.27838174,63412.0,63411.0,0.160614]
[1721352004816,0.26838174,63412.0,63411.0,0.002913]
[1721352005025,0.25438174,63412.0,63411.0,0.002913]
[1721352005252,0.26338174,63412.0,63411.0,0.002913]
[1721352005466,0.26338174,63412.0,63411.0,0.476016]
[1721352005467,0.36141403,63412.0,63411.0,0.476016]
[1721352005691,0.26838174,63412.0,63411.0,0.476016]
[1721352005891,0.25438174,63412.0,63411.0,0.476016]
[1721352006331,0.26438174,63412.0,63411.0,0.476016]
[1721352006547,0.43641991,63412.0,63411.0,0.002913]
[1721352006752,1.54530891,63412.0,63411.0,0.002913]
[1721352006962,1.21991191,63412.0,63411.0,0.002913]
[1721352007163,0.25938174,63412.0,63411.0,0.002913]
[1721352007619,0.73247674,63412.0,63411.0,0.002913]
[1721352007849,0.25438174,63412.0,63411.0,0.002913]
[1721352008086,0.25838174,63412.0,63411.0,0.002913]
[1721352008326,0.26738174,63412.0,63411.0,0.002913]
[1721352008573,0.28138174,63412.0,63411.0,0.303214]
[1721352008784,0.27238174,63412.0,63411.0,0.618616]
[1721352008987,0.018,63412.0,63411.0,0.618616]
[1721352009195,0.026,63412.0,63411.0,0.934018]
[1721352009623,0.018,63412.0,63411.0,1.24942]
[1721352009830,0.002794,63426.0,63420.0,0.1407]
[1721352010035,0.002794,63426.0,63425.0,0.472999]
[1721352010441,0.00083,63432.0,63426.0,0.315326]
[1721352010647,0.15717574,63431.0,63424.0,0.07717479]
[1721352010864,0.002794,63431.0,63430.0,0.78827]
[1721352011079,0.00083,63432.0,63431.0,0.788257]
[1721352011296,0.00083,63432.0,63431.0,1.24726]
[1721352011724,0.00083,63432.0,63431.0,0.931957]
[1721352011941,0.00083,63432.0,63431.0,0.301351]
[1721352012148,0.00083,63432.0,63431.0,0.616654]
[1721352012537,0.00083,63432.0,63431.0,0.931957]
[1721352012750,0.00383,63432.0,63431.0,0.931957]
[1721352012958,0.15821174,63432.0,63431.0,0.1437]
[1721352013174,0.007,63431.0,63425.0,0.459032]
[1721352013373,0.17233291,63432.0,63426.0,0.07717479]
[1721352013374,0.002794,63430.0,63426.0,0.07717479]
[1721352013576,0.15521174,63432.0,63429.0,0.315313]
[1721352013788,0.15521174,63432.0,63431.0,0.473954]
[1721352014118,0.15521174,63432.0,63431.0,0.472954]
[1721352014532,0.15521174,63432.0,63431.0,0.473954]
[1721352014731,0.15521174,63432.0,63431.0,0.157651]
[1721352014928,0.17203291,63432.0,63430.0,0.157653]
[1721352015178,0.17503291,63432.0,63431.0,0.157651]
[1721352015745,0.15521174,63432.0,63431.0,0.157651]
[1721352015947,0.15521174,63432.0,63429.0,0.157655]
[1721352016153,0.15821174,63432.0,63431.0,0.001]
[1721352016359,0.15821174,63432.0,63431.0,0.158651]
[1721352016762,0.15821174,63432.0,63431.0,0.159651]
[1721352016763,0.15521174,63432.0,63431.0,0.159651]
[1721352016894,0.15521174,63432.0,63431.0,0.474954]
[1721352017096,0.16521174,63432.0,63431.0,0.472954]
[1721352017311,0.16521174,63432.0,63431.0,0.789257]
[1721352017809,0.01083,63432.0,63431.0,1.24156]
[1721352017976,0.01083,63432.0,63431.0,1.557863]
[1721352018183,0.00083,63432.0,63431.0,1.557863]
[1721352018591,0.013,63437.0,63436.0,1.249573]
[1721352020221,0.00306732,63437.0,63436.0,1.565851]
[1721352020423,0.00406732,63437.0,63436.0,1.568851]
[1721352021663,0.00406732,63437.0,63436.0,0.938295]
[1721352021865,0.15844906,63437.0,63436.0,0.004]
[1721352022097,0.63135806,63437.0,63436.0,0.004]
[1721352022294,1.54663106,63437.0,63436.0,0.004]
[1721352022498,1.38570763,63437.0,63436.0,0.004]
[1721352022712,1.38570763,63437.0,63431.0,0.15765]
[1721352022713,1.06943463,63437.0,63431.0,0.15765]
[1721352022920,0.002794,63435.0,63430.0,0.315305]
[1721352023092,0.25438174,63436.0,63424.0,0.0805]
[1721352023093,0.1,63436.0,63435.0,0.157641]
[1721352023429,0.25438174,63436.0,63435.0,0.472924]
[1721352023804,0.1,63436.0,63435.0,0.848307]
[1721352024016,0.00306732,63437.0,63436.0,0.788195]
[1721352024213,0.00306732,63437.0,63436.0,1.103473]
[1721352024909,0.01706732,63437.0,63436.0,1.103473]
[1721352025456,0.00306732,63437.0,63436.0,1.103473]
[1721352026480,0.00306732,63437.0,63436.0,1.105473]
[1721352026626,0.00406732,63437.0,63436.0,1.108473]
[1721352029031,0.00406732,63437.0,63436.0,1.423751]
[1721352029677,0.00406732,63437.0,63436.0,1.71983274]
[1721352029881,0.00406732,63437.0,63436.0,2.08511074]
[1721352030432,0.00406732,63437.0,63436.0,2.03511074]
[1721352030857,0.00406732,63437.0,63436.0,1.71983274]
[1721352031345,0.00406732,63437.0,63436.0,1.71783274]
[1721352031809,0.00406732,63437.0,63436.0,2.03411074]
[1721352032014,0.00306732,63437.0,63436.0,2.08111074]
[1721352032315,0.00306732,63437.0,63436.0,2.03011074]
[1721352032447,0.00506732,63437.0,63436.0,2.09211074]
[1721352032858,0.00606732,63437.0,63436.0,2.05011074]
[1721352033063,0.00506732,63437.0,63436.0,2.04611074]
[1721352033242,0.00606732,63437.0,63436.0,2.05211074]
[1721352033444,0.00606732,63437.0,63436.0,1.73683274]
[1721352034467,0.00606732,63437.0,63436.0,2.05211074]
[1721352034896,0.00606732,63437.0,63436.0,2.10302374]
[1721352035094,0.00606732,63437.0,63436.0,2.12602374]
[1721352035295,0.00589732,63437.0,63436.0,2.25093674]
[1721352035574,0.00689732,63437.0,63436.0,2.20493674]
[1721352035778,0.00489732,63437.0,63436.0,2.18893674]
[1721352036010,0.00489732,63437.0,63436.0,1.250086]
[1721352036444,0.00489732,63437.0,63436.0,1.71974574]
[1721352037686,0.00389732,63437.0,63436.0,1.84666678]
[1721352038087,0.00489732,63437.0,63436.0,1.71974574]
[1721352038464,0.00589732,63437.0,63436.0,1.85766657]
[1721352038748,0.00389732,63437.0,63436.0,1.84666657]
[1721352038949,0.00489732,63437.0,63436.0,1.85366657]
[1721352039154,0.00589732,63437.0,63436.0,1.85766657]
[1721352039357,0.00589732,63437.0,63436.0,1.85066657]
[1721352039561,0.00689732,63437.0,63436.0,1.85666657]
[1721352039742,0.00589732,63437.0,63436.0,1.85266657]
[1721352039943,0.00389732,63437.0,63436.0,1.84666657]
[1721352040150,0.00489732,63437.0,63436.0,1.85266657]
[1721352040796,0.00489732,63437.0,63436.0,1.85266474]
[1721352041045,0.00489732,63437.0,63436.0,2.44584274]
[1721352041257,0.00083,63448.0,63447.0,1.418503]
[1721352041461,0.00083,63448.0,63447.0,1.693722]
[1721352042472,0.00083,63448.0,63447.0,1.697722]
[1721352043045,0.00183,63448.0,63447.0,1.704722]
[1721352043777,0.00183,63448.0,63447.0,1.700722]
[1721352043949,0.00083,63448.0,63447.0,1.693722]
[1721352044378,0.00083,63448.0,63447.0,1.84810374]
[1721352044783,0.00183,63448.0,63447.0,1.85210374]
[1721352045146,0.00283,63448.0,63447.0,1.86110374]
[1721352045356,0.00283,63448.0,63447.0,2.17632674]
[1721352045561,0.00183,63448.0,63447.0,2.17232674]
[1721352045809,0.00283,63448.0,63447.0,2.17632674]
[1721352047204,0.00283,63448.0,63447.0,2.04540774]
[1721352047396,0.00283,63448.0,63447.0,2.17630596]
[1721352047804,0.00283,63448.0,63447.0,2.17630571]
[1721352048467,0.00283,63448.0,63447.0,2.22630571]
[1721352048851,0.00283,63448.0,63447.0,2.17630571]
[1721352049410,0.00283,63448.0,63447.0,2.22630571]
[1721352050379,0.00283,63448.0,63447.0,2.22630265]
[1721352051093,0.00283,63448.0,63447.0,2.22629667]
[1721352051749,0.00283,63448.0,63447.0,2.17629667]
[1721352051924,0.00283,63448.0,63447.0,1.86107367]
[1721352052305,0.00283,63448.0,63447.0,2.17629667]
[1721352053127,0.00283,63448.0,63447.0,2.24929667]
[1721352053337,1e-06,63448.0,63447.0,2.43363074]
[1721352053519,1e-06,63448.0,63447.0,2.56451687]
[1721352053721,1e-06,63448.0,63447.0,2.807857]
[1721352054137,0.002794,63467.0,63466.0,1.102951]
[1721352054339,0.0754,63468.0,63467.0,0.157562]
[1721352054516,0.0754,63468.0,63467.0,0.78781]
[1721352055434,0.1417,63468.0,63466.0,0.161564]
[1721352055633,0.1477,63468.0,63467.0,0.158562]
[1721352056030,0.1477,63468.0,63467.0,0.157562]
[1721352056213,0.1477,63468.0,63467.0,0.474686]
[1721352056418,0.1417,63468.0,63467.0,0.472686]
[1721352057035,0.1437,63468.0,63467.0,0.472686]
[1721352057445,0.1417,63468.0,63467.0,0.472686]
[1721352057850,0.1467,63468.0,63467.0,0.472686]
[1721352058470,0.1467,63468.0,63467.0,0.78781]
[1721352060313,0.005,63468.0,63467.0,1.102934]
[1721352062437,0.005,63468.0,63463.0,0.315143]
[1721352062438,0.1464,63473.0,63472.0,0.787747]
[1721352064415,0.004,63473.0,63472.0,1.102846]
[1721352064771,0.005,63473.0,63472.0,1.102846]
[1721352067548,0.005,63473.0,63472.0,1.417945]
[1721352068480,0.004,63473.0,63472.0,1.417945]
[1721352068684,0.004,63473.0,63472.0,1.423945]
[1721352069174,0.00834,63478.0,63477.0,0.787685]
[1721352069456,0.0607,63476.0,63472.0,0.006]
[1721352069658,0.15717574,63475.0,63472.0,0.006]
[1721352069825,0.31471774,63475.0,63472.0,0.006]
[1721352070153,0.160341,63473.0,63472.0,0.006]
[1721352070324,0.55342874,63473.0,63472.0,0.006]
[1721352070532,0.55342874,63473.0,63465.0,0.315132]
[1721352070533,0.002794,63470.0,63465.0,0.315132]
[1721352070737,0.002794,63470.0,63469.0,0.157557]
[1721352070899,0.002794,63470.0,63469.0,0.472671]
[1721352071513,0.002794,63470.0,63469.0,0.157557]
[1721352071709,0.002794,63470.0,63465.0,0.315133]
[1721352071934,0.006794,63470.0,63465.0,0.315133]
[1721352072137,0.013794,63470.0,63469.0,0.001]
[1721352072361,0.011,63470.0,63469.0,0.001]
[1721352072541,0.013794,63470.0,63469.0,0.001]
[1721352072936,0.011,63470.0,63469.0,0.001]
[1721352073342,0.013794,63470.0,63469.0,0.001]
[1721352073522,0.002794,63470.0,63467.0,0.157561]
[1721352073932,0.013794,63470.0,63467.0,0.157561]
[1721352074136,0.009794,63470.0,63466.0,0.315127]
[1721352074361,0.002794,63470.0,63467.0,0.15756]
[1721352074557,0.006794,63470.0,63468.0,0.157557]
[1721352074921,0.013794,63470.0,63469.0,0.472671]
[1721352075102,0.015,63470.0,63469.0,0.472671]
[1721352075452,0.008,63470.0,63469.0,0.157557]
[1721352076195,0.010794,63470.0,63469.0,0.472671]
[1721352076480,0.008,63470.0,63469.0,0.787785]
[1721352076710,0.015,63470.0,63469.0,0.787785]
[1721352076913,0.007,63470.0,63469.0,0.787785]
[1721352077086,0.011,63470.0,63469.0,0.787785]
[1721352077285,0.004,63470.0,63469.0,0.787785]
[1721352077488,0.011,63470.0,63469.0,0.788785]
[1721352077750,0.011,63470.0,63469.0,1.103899]
[1721352078375,0.011,63470.0,63469.0,1.64959474]
[1721352079062,0.011,63470.0,63469.0,1.71519474]
[1721352079624,0.004,63470.0,63469.0,1.71419474]
[1721352079980,0.00834,63478.0,63477.0,1.102759]
[1721352080107,0.00834,63478.0,63477.0,1.40004074]
[1721352080310,0.00834,63478.0,63477.0,2.16102837]
[1721352080697,0.00834,63478.0,63477.0,2.16102666]
[1721352081180,0.01134,63478.0,63477.0,2.16102666]
[1721352081412,0.01134,63478.0,63477.0,2.16102724]
[1721352081584,0.01134,63478.0,63477.0,2.03018874]
[1721352081822,0.00834,63478.0,63477.0,2.16102554]
[1721352082013,0.00934,63478.0,63477.0,2.04418874]
[1721352083201,0.01034,63478.0,63477.0,2.05818874]
[1721352084208,0.01034,63478.0,63477.0,2.10818874]
[1721352084627,0.01034,63478.0,63477.0,2.18902069]
[1721352085133,0.01034,63478.0,63477.0,2.06754996]
[1721352085709,0.01034,63478.0,63477.0,2.11754996]
[1721352086310,0.01034,63478.0,63477.0,1.75247596]
[1721352087033,0.01034,63478.0,63477.0,1.445833]
[1721352087972,0.00934,63478.0,63477.0,1.116759]
[1721352088230,0.14464,63478.0,63463.0,0.04771374]
[1721352088466,0.002794,63477.0,63476.0,0.472618]
[1721352089194,0.002794,63477.0,63476.0,0.787697]
[1721352089496,0.14664,63478.0,63477.0,0.787685]
[1721352089689,0.14564,63478.0,63477.0,0.787685]
[1721352090915,0.14464,63478.0,63477.0,0.787685]
[1721352091164,0.01234,63478.0,63477.0,1.102759]
[1721352092533,0.00834,63478.0,63477.0,1.102759]
[1721352093028,0.00934,63478.0,63477.0,1.102759]
[1721352094236,0.00934,63478.0,63477.0,1.105759]
[1721352095476,0.00934,63478.0,63477.0,1.420833]
[1721352098515,0.00934,63478.0,63477.0,1.89028874]
[1721352098773,0.00934,63478.0,63477.0,2.03048874]
[1721352099510,0.00934,63478.0,63477.0,2.05348874]
[1721352100007,0.00934,63478.0,63477.0,2.06263217]
[1721352100492,0.00834,63478.0,63477.0,2.11263217]
[1721352100717,0.002794,63493.0,63492.0,1.4175]
[1721352100965,0.00834,63496.0,63495.0,0.787462]
[1721352101205,0.00834,63496.0,63495.0,1.417432]
[1721352102461,0.01534,63496.0,63495.0,1.418432]
[1721352102696,0.01534,63496.0,63495.0,1.94969874]
[1721352102697,0.003276,63496.0,63495.0,1.94969874]
[1721352102922,0.003276,63496.0,63495.0,2.03029874]
[1721352103885,0.018188,63501.0,63500.0,1.41732]
[1721352105100,0.018188,63501.0,63500.0,1.42432]
[1721352106332,0.018188,63501.0,63500.0,1.89366174]
[1721352106585,0.00083,63518.0,63517.0,0.534614]
[1721352106818,0.00083,63518.0,63517.0,1.93452374]
[1721352107098,0.00083,63518.0,63517.0,1.52367734]
[1721352107329,0.00083,63518.0,63517.0,1.57132374]
[1721352107800,0.00083,63518.0,63517.0,1.57732374]
[1721352108045,0.00083,63518.0,63517.0,1.57132374]
[1721352108568,0.00083,63518.0,63517.0,1.58532374]
[1721352108804,0.00083,63518.0,63517.0,1.57132374]
[1721352109031,0.00083,63518.0,63517.0,1.58532374]
[1721352110235,0.00083,63518.0,63517.0,1.57132374]
[1721352110474,0.00083,63518.0,63517.0,1.59932374]
[1721352110950,0.00083,63518.0,63517.0,1.58532374]
[1721352111180,0.00083,63518.0,63517.0,1.59932374]
[1721352111649,0.00083,63518.0,63517.0,1.91419974]
[1721352112626,0.00083,63518.0,63517.0,2.14209974]
[1721352113660,1e-06,63518.0,63517.0,2.59487574]
[1721352113930,1e-06,63518.0,63517.0,3.11765996]
[1721352114161,0.00835,63526.0,63525.0,0.522254]
[1721352114398,0.00835,63533.0,63528.0,0.837052]
[1721352114659,0.00835,63533.0,63528.0,1.95876048]
[1721352114944,0.00835,63533.0,63528.0,2.51432933]
[1721352114945,1e-06,63529.0,63528.0,2.51432933]
[1721352115201,0.52344871,63553.0,63541.0,0.472135]
[1721352115202,0.002794,63551.0,63541.0,0.472135]
[1721352115435,0.52344871,63553.0,63541.0,1.79868774]
[1721352115683,0.52344871,63553.0,63541.0,2.21205633]
[1721352116148,0.0604,63553.0,63541.0,2.11344474]
[1721352117103,0.0774,63557.0,63541.0,2.11344474]
[1721352117327,0.14,63557.0,63541.0,2.16344474]
[1721352118053,0.0078378,63542.0,63541.0,2.12744474]
[1721352118534,0.0078378,63542.0,63541.0,2.17744474]
[1721352118758,0.0078378,63542.0,63541.0,2.14144474]
[1721352118991,0.0078378,63542.0,63541.0,2.11344474]
[1721352119214,0.0078378,63542.0,63541.0,2.12744474]
[1721352119444,0.0078378,63542.0,63541.0,2.14144474]
[1721352120430,8e-07,63542.0,63541.0,2.52920174]
[1721352120943,0.011134,63560.0,63544.0,1.781081]
[1721352121184,0.00834,63560.0,63544.0,2.27320474]
[1721352121445,0.00834,63560.0,63548.0,1.466249]
[1721352121656,0.00834,63560.0,63559.0,0.78667]
[1721352121915,0.00834,63560.0,63559.0,1.416006]
[1721352122390,0.00834,63560.0,63559.0,1.57038774]
[1721352122869,0.00834,63560.0,63559.0,1.101338]
[1721352124302,0.0162,63560.0,63559.0,1.105338]
[1721352125797,0.0162,63560.0,63559.0,1.101338]
[1721352126015,0.0162,63560.0,63559.0,1.109338]
[1721352127634,0.0162,63560.0,63559.0,1.112338]
[1721352128298,0.0162,63560.0,63559.0,0.483002]
[1721352128511,0.1555,63560.0,63559.0,0.011]
[1721352128730,0.1555,63560.0,63559.0,0.168334]
[1721352128950,0.1555,63560.0,63559.0,1.112338]
[1721352130090,0.1555,63560.0,63559.0,1.109338]
[1721352130299,0.0162,63560.0,63559.0,1.424006]
[1721352130520,0.0162,63560.0,63559.0,1.416006]
[1721352130954,0.0172,63560.0,63559.0,1.416006]
[1721352131167,0.0162,63560.0,63559.0,1.416006]
[1721352131408,0.0202,63560.0,63559.0,1.417006]
[1721352131619,0.0202,63560.0,63559.0,1.425006]
[1721352131836,0.0162,63560.0,63559.0,1.424006]
[1721352132252,0.0162,63560.0,63559.0,1.427006]
[1721352132469,0.0162,63560.0,63559.0,1.104338]
[1721352132684,0.0162,63560.0,63559.0,1.101338]
[1721352132685,0.1635,63560.0,63559.0,1.101338]
[1721352133120,0.1635,63560.0,63559.0,1.109338]
[1721352133748,0.1635,63560.0,63559.0,1.122338]
[1721352134167,0.1635,63560.0,63559.0,1.109338]
[1721352134418,0.1635,63560.0,63559.0,1.101338]
[1721352134624,0.1635,63560.0,63559.0,1.112338]
[1721352138330,0.1635,63560.0,63559.0,1.24302714]
[1721352138331,0.0162,63560.0,63559.0,1.24302714]
[1721352138547,0.06103,63564.0,63562.0,1.101285]
[1721352139682,0.06103,63564.0,63562.0,1.23196704]
[1721352140549,0.00083,63564.0,63562.0,1.23196844]
[1721352140764,0.00083,63564.0,63562.0,1.54662144]
[1721352141025,0.00083,63564.0,63562.0,1.55062144]
[1721352141240,0.00083,63564.0,63562.0,1.70500318]
[1721352141675,0.00083,63564.0,63562.0,2.09305618]
[1721352141896,0.00083,63564.0,63562.0,1.77840318]
[1721352142134,0.00083,63564.0,63562.0,1.71900318]
[1721352142355,0.00083,63564.0,63562.0,1.23895355]
[1721352142579,0.00083,63564.0,63562.0,1.24595355]
[1721352142790,0.00083,63564.0,63562.0,1.25995355]
[1721352143896,0.075263,63563.0,63562.0,1.25995355]
[1721352144334,0.075263,63563.0,63562.0,1.24595355]
[1721352144563,0.157663,63563.0,63562.0,0.61364755]
[1721352144811,0.014163,63563.0,63562.0,0.61364755]
[1721352145032,0.014163,63563.0,63562.0,1.25695355]
[1721352145471,0.014163,63563.0,63562.0,1.24596505]
[1721352145689,0.014163,63563.0,63562.0,1.40034679]
[1721352145899,0.014163,63563.0,63562.0,1.61025986]
[1721352146117,0.014163,63563.0,63562.0,1.90600661]
[1721352146339,0.014163,63563.0,63562.0,1.90400661]
[1721352146554,0.014163,63563.0,63562.0,1.89700661]
[1721352146772,0.014163,63563.0,63562.0,1.91591102]
[1721352146980,0.014163,63563.0,63562.0,1.91100661]
[1721352147635,0.014163,63563.0,63562.0,1.93891122]
[1721352147846,0.014163,63563.0,63562.0,1.62425822]
[1721352148050,0.014163,63563.0,63562.0,1.40034679]
[1721352148276,0.014163,63563.0,63562.0,1.91590886]
[1721352148493,0.015163,63563.0,63562.0,1.91098675]
[1721352148710,0.015163,63563.0,63562.0,1.94389353]
[1721352148924,0.015163,63563.0,63562.0,1.9109892]
[1721352149130,0.015163,63563.0,63562.0,1.9249892]
[1721352149558,0.015163,63563.0,63562.0,1.62924067]
[1721352149995,0.015163,63563.0,63562.0,1.94389367]
[1721352150430,0.015163,63563.0,63562.0,1.72898654]
[1721352150874,0.015163,63563.0,63562.0,1.9249875]
[1721352151101,0.015163,63563.0,63562.0,2.0078875]
[1721352151323,0.015163,63563.0,63562.0,2.05471066]
[1721352151541,0.015163,63563.0,63562.0,2.07368492]
[1721352151759,0.015163,63563.0,63562.0,2.00788012]
[1721352152187,0.015163,63563.0,63562.0,2.42713625]
[1721352152422,0.015163,63563.0,63562.0,2.89196404]
[1721352152636,0.015163,63563.0,63562.0,2.50695182]
[1721352153463,0.0642,63580.0,63568.0,1.415803]
[1721352153704,0.002794,63579.0,63568.0,1.54646715]
[1721352153930,0.002794,63579.0,63568.0,1.70084889]
[1721352154178,0.0642,63580.0,63568.0,1.70084889]
[1721352154392,0.002794,63579.0,63568.0,1.70084889]
[1721352154642,0.002794,63579.0,63568.0,1.70083932]
[1721352154843,0.0642,63580.0,63568.0,1.70783932]
[1721352155506,0.0642,63580.0,63568.0,1.71883932]
[1721352156276,0.00834,63582.0,63568.0,2.19926232]
[1721352156437,0.00834,63582.0,63568.0,2.24624335]
[1721352156649,0.00834,63582.0,63568.0,2.19926232]
[1721352156860,0.00834,63582.0,63568.0,2.23350065]
[1721352157066,0.00834,63582.0,63568.0,2.30399892]
[1721352157539,0.00834,63582.0,63568.0,1.88462921]
[1721352157749,0.00834,63582.0,63568.0,1.82202921]
[1721352158175,0.00834,63582.0,63568.0,1.83116303]
[1721352158600,0.00834,63582.0,63568.0,1.87818172]
[1721352160242,0.00834,63582.0,63568.0,1.41334003]
[1721352160243,0.0654,63569.0,63568.0,1.41334003]
[1721352160446,0.0654,63569.0,63568.0,1.40420621]
[1721352160630,0.0654,63569.0,63568.0,1.40421758]
[1721352161043,0.0654,63569.0,63568.0,0.62058984]
[1721352161250,0.0654,63569.0,63568.0,0.489934]
[1721352161470,0.1473,63569.0,63568.0,0.018]
[1721352161674,0.1473,63569.0,63568.0,0.489934]
[1721352162325,0.1473,63569.0,63568.0,0.482934]
[1721352162760,0.1473,63569.0,63568.0,0.471934]
[1721352162908,0.1473,63569.0,63568.0,0.472934]
[1721352163384,0.1473,63569.0,63568.0,0.158311]
[1721352163820,0.1503,63569.0,63568.0,0.001]
[1721352164248,0.1473,63569.0,63568.0,0.158311]
[1721352164649,0.1503,63569.0,63568.0,0.472934]
[1721352165307,0.1503,63569.0,63568.0,0.787557]
[1721352165876,0.1503,63569.0,63568.0,1.10218]
[1721352166231,0.005,63569.0,63568.0,1.25656174]
[1721352166487,0.005,63569.0,63568.0,1.70778474]
[1721352166702,0.005,63569.0,63568.0,1.83843811]
[1721352167570,0.005,63569.0,63568.0,1.70778474]
[1721352167996,0.005,63569.0,63568.0,1.83843999]
[1721352169257,0.005,63569.0,63568.0,1.86143999]
[1721352169472,0.005,63569.0,63568.0,1.87046917]
[1721352169732,0.005,63569.0,63568.0,1.87046154]
[1721352170402,0.005,63569.0,63568.0,2.18508454]
[1721352171508,0.005,63569.0,63568.0,1.87046154]
[1721352172131,0.005,63569.0,63568.0,2.18508454]
[1721352172775,0.005,63569.0,63568.0,2.18507632]
[1721352173614,0.005,63569.0,63568.0,1.87045332]
[1721352174083,0.005,63569.0,63568.0,2.18507632]
[1721352174293,0.005,63569.0,63568.0,1.87045332]
[1721352174720,0.005,63569.0,63568.0,2.41297632]
[1721352175382,0.005,63569.0,63568.0,2.46297632]
[1721352175815,0.005,63569.0,63568.0,2.33133692]
[1721352176021,0.002,63569.0,63568.0,2.46697938]
[1721352176469,0.002,63569.0,63568.0,2.46297938]
[1721352176896,0.002,63569.0,63568.0,2.46197938]
[1721352177102,0.002,63569.0,63568.0,2.47197938]
[1721352177726,0.002,63569.0,63568.0,2.48197938]
[1721352177946,0.002,63569.0,63568.0,2.47197938]
[1721352178366,0.002,63569.0,63568.0,2.48597938]
[1721352179005,0.002,63569.0,63568.0,2.35533692]
[1721352179273,0.002,63569.0,63568.0,2.4859725]
[1721352179696,0.002,63569.0,63568.0,2.5859725]
[1721352180788,0.0143442,63576.0,63575.0,1.780239]
[1721352180993,0.0143442,63576.0,63575.0,1.93462074]
[1721352181200,0.0143442,63576.0,63575.0,2.01525475]
[1721352181623,0.0143442,63576.0,63575.0,2.06525475]
[1721352181839,0.0143442,63576.0,63575.0,2.40284375]
[1721352182262,0.0143442,63576.0,63575.0,2.5048391]
[1721352182476,0.0143442,63576.0,63575.0,2.5118391]
[1721352182907,0.0143442,63576.0,63575.0,2.38120974]
[1721352183161,1e-06,63582.0,63581.0,2.094633]
[1721352183386,1e-06,63582.0,63581.0,2.8712426]
[1721352184466,1e-06,63582.0,63581.0,2.2787836]
[1721352184683,1e-06,63582.0,63581.0,1.98445574]
[1721352184900,1e-06,63582.0,63581.0,2.13807632]
[1721352185134,1e-06,63582.0,63581.0,2.16307632]
[1721352185351,1e-06,63582.0,63581.0,2.16307117]
[1721352185564,1e-06,63582.0,63581.0,2.14907117]
[1721352185819,1e-06,63582.0,63581.0,2.15207117]
[1721352186024,1e-06,63582.0,63581.0,2.16607117]
[1721352186446,1e-06,63582.0,63581.0,2.15207117]
[1721352186884,1e-06,63582.0,63581.0,2.14307117]
[1721352187157,1e-06,63582.0,63581.0,0.814397]
[1721352187376,0.078501,63582.0,63581.0,1.114956]
[1721352187581,0.078501,63582.0,63581.0,1.128956]
[1721352187792,0.078501,63582.0,63581.0,1.114956]
[1721352188440,0.078501,63582.0,63581.0,1.128956]
[1721352188674,0.078501,63582.0,63581.0,1.114956]
[1721352188886,0.078501,63582.0,63581.0,1.104956]
[1721352189335,0.078501,63582.0,63581.0,1.108956]
[1721352189771,0.078501,63582.0,63581.0,1.104956]
[1721352191315,0.078501,63582.0,63581.0,1.113956]
[1721352192597,0.141001,63582.0,63581.0,0.013]
[1721352192823,0.141001,63582.0,63581.0,0.484838]
[1721352193047,0.141001,63582.0,63581.0,0.799397]
[1721352194124,0.141001,63582.0,63581.0,0.790397]
[1721352194343,0.141001,63582.0,63581.0,0.786397]
[1721352194533,0.141001,63582.0,63581.0,0.790397]
[1721352194752,0.141001,63582.0,63581.0,0.786397]
[1721352194981,0.141001,63582.0,63581.0,0.789397]
[1721352195391,0.142001,63582.0,63581.0,0.789397]
[1721352196454,0.142001,63582.0,63581.0,1.103956]
[1721352196894,0.142001,63582.0,63581.0,1.111816]
[1721352197633,0.142001,63582.0,63581.0,0.797257]
[1721352197856,0.142001,63582.0,63581.0,0.482698]
[1721352198072,0.142001,63582.0,63581.0,0.797257]